bitfinex/quotes_SOLUSD_20251024
["timestamp","ask_amount","ask_price","bid_price","bid_amount"]
[1761319674669,37.24,190.05,190.04,3.85396781]
[1761319675496,37.24,190.05,189.95,1.99999999]
[1761319675497,10.87647521,190.04,189.96,5.26423429]
[1761319675675,11.59647521,190.04,189.96,5.26423429]
[1761319675989,11.59647521,190.04,189.97,0.61]
[1761319675990,10.87647521,190.02,189.97,0.61]
[1761319676173,37.24,190.01,189.97,3.24396781]
[1761319676378,37.24,190.01,189.96,8.5082021]
[1761319676582,37.24,190.01,189.96,9.1182021]
[1761319676983,37.24,190.01,189.97,3.24396781]
[1761319677491,37.24,190.01,189.96,5.87423429]
[1761319677492,37.94,190.01,189.96,5.87423429]
[1761319677688,37.94,190.01,189.96,9.1182021]
[1761319677890,41.18396781,190.01,189.96,9.1182021]
[1761319678100,3.94396781,190.0,189.96,5.26423429]
[1761319678691,3.94396781,190.0,189.95,28.1445433]
[1761319678999,3.94396781,190.0,189.95,5.2645433]
[1761319679000,3.94396781,189.99,189.95,5.2645433]
[1761319679199,37.22,189.98,189.95,5.2645433]
[1761319679894,37.22,189.98,189.95,0.61]
[1761319680207,3.24396781,189.96,189.91,5.26564078]
[1761319680420,37.22,189.95,189.91,3.24396781]
[1761319680581,37.22,189.95,189.91,3.85396781]
[1761319680777,37.22,189.94,189.92,0.61]
[1761319680973,37.22,189.93,189.91,3.24396781]
[1761319681184,37.22,189.93,189.9,5.87588341]
[1761319681384,0.7,190.0,189.93,22.88]
[1761319681700,37.22,189.99,189.95,3.24396781]
[1761319682076,37.22,189.99,189.96,5.26426616]
[1761319682800,37.22,189.99,189.95,5.26452442]
[1761319682801,37.92,189.99,189.95,5.26452442]
[1761319683209,37.92,189.99,189.95,8.50849223]
[1761319683518,42.48348232,189.99,189.93,22.88]
[1761319683692,3.24396781,189.94,189.89,8.51017456]
[1761319683892,37.22,189.93,189.88,3.24396781]
[1761319684089,37.22,189.93,189.88,8.51036856]
[1761319684289,37.92,189.93,189.88,9.12036856]
[1761319685591,37.92,189.93,189.88,0.61]
[1761319685780,0.7,189.92,189.87,31.39069707]
[1761319685977,3.24396781,189.91,189.87,5.26672926]
[1761319686304,0.7,189.92,189.87,5.26672926]
[1761319686305,0.7,189.92,189.87,9.12069707]
[1761319686605,37.22,189.9,189.87,8.51069707]
[1761319686802,37.22,189.89,189.87,8.51069707]
[1761319687198,37.22,189.9,189.87,8.51069707]
[1761319687399,37.22,189.9,189.88,3.85396781]
[1761319687701,37.22,189.9,189.89,5.26620675]
[1761319688404,37.22,189.9,189.87,3.24396781]
[1761319688405,37.22,189.9,189.87,5.26659791]
[1761319688604,37.92,189.9,189.87,5.26659791]
[1761319688902,37.22,189.9,189.87,5.26659791]
[1761319689119,10.87647521,189.95,189.88,0.61]
[1761319689327,37.22,189.94,189.88,0.61]
[1761319689480,3.24396781,189.94,189.89,3.24396781]
[1761319689828,41.16396781,189.93,189.89,5.26601419]
[1761319690423,37.22,189.92,189.89,5.26601419]
[1761319691219,0.7,189.93,189.89,5.26601419]
[1761319691396,37.22,189.91,189.89,5.26601419]
[1761319691587,37.22,189.91,189.87,16.41087148]
[1761319691588,37.22,189.91,189.87,5.26656978]
[1761319691787,41.16396781,189.91,189.87,5.26656978]
[1761319692011,37.92,189.91,189.87,5.26656978]
[1761319692190,37.92,189.91,189.87,8.51053759]
[1761319692397,37.92,189.91,189.87,5.26656978]
[1761319693819,37.92,189.91,189.87,8.51053759]
[1761319697900,37.92,189.91,189.88,3.24396781]
[1761319698230,103.3,189.92,189.9,3.24396781]
[1761319698531,103.3,189.92,189.86,18.43455139]
[1761319698532,140.52,189.92,189.91,3.85396781]
[1761319698740,140.52,189.92,189.86,18.43455139]
[1761319698908,140.52,189.92,189.9,2.07643388]
[1761319699309,141.17,189.92,189.9,2.07643388]
[1761319699727,140.52,189.92,189.9,2.07643388]
[1761319699919,140.52,189.92,189.9,7.34209266]
[1761319700126,140.52,189.92,189.91,2.07643388]
[1761319700426,103.3,189.96,189.91,2.68643388]
[1761319700627,37.22,189.95,189.93,2.07643388]
[1761319700837,37.22,189.95,189.91,0.61]
[1761319701341,37.22,189.95,189.92,2.07643388]
[1761319702036,37.22,189.95,189.92,7.34155798]
[1761319704017,37.22,189.95,189.92,5.2651241]
[1761319704218,37.87,189.95,189.92,5.2651241]
[1761319704428,0.65,189.94,189.91,5.26557703]
[1761319704634,0.65,189.94,189.89,2.07643388]
[1761319705116,0.65,189.94,189.87,36.65643752]
[1761319705315,0.65,189.94,189.89,2.07643388]
[1761319705515,0.65,189.94,189.9,5.26592943]
[1761319706127,2.07643388,189.93,189.88,5.26628124]
[1761319706331,37.22,189.92,189.88,5.26628124]
[1761319706534,37.87,189.92,189.87,5.26668755]
[1761319706733,2.07643388,189.9,189.83,21.08509845]
[1761319707038,2.07643388,189.87,189.79,0.61]
[1761319707210,37.22,189.86,189.81,2.07643388]
[1761319707412,37.87,189.86,189.81,2.07643388]
[1761319707612,0.65,189.85,189.82,5.26814877]
[1761319707835,0.65,189.85,189.8,5.26870389]
[1761319708019,0.65,189.85,189.8,7.34513777]
[1761319708832,0.65,189.85,189.8,7.95513777]
[1761319709347,10.87647521,189.84,189.78,5.26921395]
[1761319709517,37.22,189.83,189.78,7.34564783]
[1761319709715,37.87,189.83,189.78,7.34564783]
[1761319709916,0.65,189.82,189.79,2.07643388]
[1761319710614,37.22,189.83,189.8,2.07643388]
[1761319710836,0.65,189.87,189.82,2.07643388]
[1761319711010,0.65,189.87,189.83,2.07643388]
[1761319711213,37.22,189.86,189.82,2.07643388]
[1761319711434,37.22,189.86,189.8,0.61]
[1761319711618,37.87,189.86,189.81,2.07643388]
[1761319711817,37.87,189.86,189.82,5.26814877]
[1761319712220,0.65,189.85,189.81,5.26837293]
[1761319712421,37.22,189.84,189.81,2.07643388]
[1761319713829,0.65,189.83,189.77,0.1]
[1761319714036,0.65,189.83,189.79,2.07643388]
[1761319714836,0.65,189.83,189.78,30.22543853]
[1761319715140,0.65,189.83,189.78,30.83543853]
[1761319715444,0.65,189.83,189.78,44.00858638]
[1761319716939,5.26710588,189.86,189.78,43.39858638]
[1761319717145,2.07643388,189.84,189.79,2.68643388]
[1761319717333,39.94643388,189.85,189.8,2.07643388]
[1761319717531,0.65,189.84,189.79,2.68643388]
[1761319718146,0.65,189.84,189.8,5.26870389]
[1761319718944,37.22,189.83,189.8,7.95513777]
[1761319719142,37.22,189.83,189.8,7.34513777]
[1761319719443,2.72643388,189.84,189.8,5.26870389]
[1761319719645,37.22,189.83,189.8,5.26870389]
[1761319719940,37.22,189.82,189.8,5.26870389]
[1761319720140,2.72643388,189.84,189.8,5.26870389]
[1761319720349,37.22,189.83,189.8,5.26870389]
[1761319720741,37.87,189.83,189.8,5.26870389]
[1761319722341,0.65,189.82,189.8,5.26870389]
[1761319724455,2.72643388,189.82,189.77,5.36945193]
[1761319724830,0.65,189.81,189.77,7.44588581]
[1761319725030,37.2,189.8,189.77,7.44588581]
[1761319725824,37.2,189.79,189.78,2.07643388]
[1761319727039,0.65,189.81,189.78,2.07643388]
[1761319727357,37.2,189.8,189.77,7.44588581]
[1761319727538,37.2,189.8,189.77,5.36945193]
[1761319727847,0.65,189.81,189.78,2.07643388]
[1761319728066,37.2,189.8,189.78,2.07643388]
[1761319728353,0.65,189.81,189.78,2.07643388]
[1761319728549,0.65,189.81,189.77,7.44588581]
[1761319728850,37.2,189.8,189.77,7.44588581]
[1761319729349,37.2,189.8,189.77,20.61972782]
[1761319730042,37.2,189.8,189.77,18.54329394]
[1761319730240,103.97,189.83,189.79,2.07643388]
[1761319730548,37.2,189.82,189.78,2.07643388]
[1761319730723,103.97,189.83,189.77,19.15329394]
[1761319730927,37.2,189.81,189.77,5.36945193]
[1761319731349,0.67,189.8,189.77,5.36945193]
[1761319731850,37.2,189.79,189.77,5.36945193]
[1761319732041,103.3,189.83,189.78,2.07643388]
[1761319732256,37.2,189.92,189.82,2.07643388]
[1761319732443,37.2,189.92,189.88,2.07643388]
[1761319732745,0.67,189.91,189.86,2.07643388]
[1761319734362,0.67,189.91,189.88,5.26648409]
[1761319734536,37.2,189.9,189.88,5.26648409]
[1761319734733,0.67,189.91,189.88,5.26648409]
[1761319734940,0.67,189.9,189.88,5.26648409]
[1761319735354,37.2,189.89,189.88,5.26648409]
[1761319735556,37.2,189.89,189.84,0.61]
[1761319735733,37.2,189.88,189.85,2.07643388]
[1761319735939,37.2,189.87,189.85,2.07643388]
[1761319736240,37.87,189.87,189.84,7.34402764]
[1761319736434,0.67,189.86,189.84,5.26759376]
[1761319737152,37.2,189.87,189.84,5.26759376]
[1761319737344,37.92,189.87,189.84,5.26759376]
[1761319737742,37.92,189.87,189.84,2.07643388]
[1761319737959,37.2,189.87,189.84,2.07643388]
[1761319738549,37.2,189.87,189.85,2.07643388]
[1761319739042,2.07643388,189.94,189.86,2.07643388]
[1761319739251,0.72,189.92,189.88,2.07643388]
[1761319739840,37.2,189.91,189.89,2.07643388]
[1761319740155,37.2,189.91,189.88,7.34266576]
[1761319740336,0.72,189.92,189.88,7.34266576]
[1761319740663,37.18,189.91,189.88,5.26623188]
[1761319741253,0.72,189.9,189.87,5.26673377]
[1761319741441,0.72,189.9,189.86,5.26703842]
[1761319741848,2.79643388,189.9,189.84,7.34402764]
[1761319742157,8.06255715,189.9,189.84,7.34402764]
[1761319742357,10.87647521,189.94,189.89,2.07643388]
[1761319742564,37.9,189.93,189.88,2.07643388]
[1761319742857,0.72,189.92,189.88,2.07643388]
[1761319743470,0.72,189.92,189.88,7.34283094]
[1761319743771,18.93831022,189.92,189.87,2.07643388]
[1761319743969,2.79643388,189.92,189.86,2.07643388]
[1761319744167,0.72,189.91,189.86,2.07643388]
[1761319744375,37.18,189.9,189.86,2.07643388]
[1761319744585,37.18,189.9,189.87,2.07643388]
[1761319744882,37.9,189.9,189.87,2.07643388]
[1761319745080,37.9,189.9,189.87,7.34298068]
[1761319746154,0.72,189.9,189.87,7.34298068]
[1761319746447,37.9,189.89,189.82,13.16982027]
[1761319746653,37.9,189.89,189.84,2.07643388]
[1761319746864,37.9,189.89,189.83,19.046162]
[1761319747072,37.9,189.89,189.84,2.07643388]
[1761319747450,0.72,189.88,189.84,2.07643388]
[1761319747649,0.72,189.88,189.83,21.12259588]
[1761319747879,0.72,189.88,189.84,2.07643388]
[1761319748356,0.72,189.88,189.85,5.2673163]
[1761319750385,0.72,189.88,189.83,15.24546199]
[1761319750386,2.79643388,189.88,189.83,5.26762023]
[1761319750756,0.72,189.87,189.83,5.26762023]
[1761319750963,2.07643388,189.85,189.78,13.17279603]
[1761319751158,2.07643388,189.85,189.79,2.07643388]
[1761319751366,0.72,189.84,189.79,2.07643388]
[1761319751687,0.72,189.84,189.8,2.07643388]
[1761319752268,0.72,189.84,189.8,7.34487749]
[1761319754183,0.72,189.84,189.8,2.07643388]
[1761319754374,37.18,189.83,189.82,2.07643388]
[1761319754575,37.18,189.83,189.82,2.68643388]
[1761319755585,37.18,189.84,189.82,2.68643388]
[1761319755787,37.18,189.84,189.83,2.07643388]
[1761319756486,37.18,189.84,189.83,7.34430513]
[1761319756870,11.59647521,189.88,189.83,7.34430513]
[1761319757185,103.3,189.89,189.84,2.07643388]
[1761319757378,37.18,189.88,189.86,2.07643388]
[1761319758091,103.3,189.89,189.86,2.07643388]
[1761319758293,37.18,189.88,189.86,2.07643388]
[1761319758677,37.18,189.88,189.85,3.24643795]
[1761319759383,37.18,189.88,189.86,8.51347682]
[1761319759687,37.18,189.88,189.87,3.24643795]
[1761319760591,37.18,189.88,189.87,8.51319941]
[1761319761971,103.3,189.89,189.87,8.51319941]
[1761319762175,103.3,189.89,189.88,3.24643795]
[1761319762375,140.48,189.89,189.87,8.51319941]
[1761319765193,0.68,189.92,189.88,3.24643795]
[1761319765394,37.84,189.91,189.88,3.24643795]
[1761319765588,37.16,189.9,189.88,3.24643795]
[1761319766398,37.16,189.9,189.89,5.26620675]
[1761319767194,0.68,189.91,189.89,5.26620675]
[1761319767386,37.16,189.9,189.89,5.26620675]
[1761319769189,103.3,189.95,189.89,3.24643795]
[1761319769395,37.16,189.94,189.91,3.24643795]
[1761319769598,37.84,189.94,189.91,3.24643795]
[1761319770301,37.16,189.93,189.91,3.24643795]
[1761319770510,37.16,189.93,189.89,0.61]
[1761319770709,0.68,189.92,189.87,21.68010308]
[1761319771082,3.92643795,189.92,189.87,18.43366513]
[1761319771483,0.68,189.91,189.87,18.43366513]
[1761319771695,37.16,189.9,189.87,18.43366513]
[1761319772196,37.84,189.9,189.87,18.43366513]
[1761319772700,3.24643795,189.88,189.83,15.81736219]
[1761319772897,37.16,189.87,189.83,15.81736219]
[1761319773115,37.84,189.87,189.83,19.06380014]
[1761319773414,37.84,189.87,189.84,5.26751621]
[1761319773784,37.84,189.87,189.84,8.51395416]
[1761319774189,0.67,189.89,189.85,3.24643795]
[1761319774395,3.24643795,189.91,189.84,19.04650061]
[1761319774396,37.16,189.88,189.87,3.24643795]
[1761319775002,0.67,189.91,189.87,3.24643795]
[1761319775212,37.16,189.9,189.88,3.24643795]
[1761319775513,37.16,189.9,189.89,5.26620675]
[1761319776610,0.67,189.92,189.89,5.26620675]
[1761319776926,37.16,189.9,189.89,5.26620675]
[1761319777104,37.83,189.9,189.86,8.5132765]
[1761319777410,0.67,189.89,189.86,8.5132765]
[1761319777620,0.67,189.89,189.86,21.68087367]
[1761319777792,37.16,189.9,189.86,21.68087367]
[1761319777994,37.83,189.9,189.86,21.68087367]
[1761319778411,0.67,189.89,189.86,21.68087367]
[1761319778714,37.83,189.9,189.86,21.68087367]
[1761319779110,37.16,189.9,189.86,21.68087367]
[1761319779318,37.83,189.9,189.86,21.68087367]
[1761319779902,37.83,189.9,189.87,3.24643795]
[1761319780304,0.67,189.89,189.87,3.24643795]
[1761319780711,0.67,189.89,189.86,18.43443572]
[1761319780912,0.67,189.89,189.88,5.26648409]
[1761319781598,37.16,189.9,189.88,5.26648409]
[1761319781802,37.83,189.9,189.88,5.26648409]
[1761319782610,37.83,189.9,189.87,3.24643795]
[1761319784421,37.83,189.9,189.88,5.26648409]
[1761319785719,37.16,189.9,189.88,5.26648409]
[1761319785924,0.67,189.89,189.86,18.43463604]
[1761319786129,0.67,189.89,189.87,3.24643795]
[1761319787929,0.67,189.89,189.88,5.26648409]
[1761319788244,0.67,189.89,189.85,28.14726854]
[1761319788431,3.24643795,189.88,189.82,3.24643795]
[1761319788733,37.14,189.87,189.82,3.24643795]
[1761319788907,37.81,189.87,189.82,3.24643795]
[1761319789107,0.67,189.86,189.82,3.24643795]
[1761319789309,0.67,189.86,189.83,3.24643795]
[1761319790328,0.67,189.86,189.81,23.49]
[1761319790329,37.14,189.87,189.84,8.51403171]
[1761319790514,0.68,189.89,189.86,3.24643795]
[1761319790832,37.14,189.88,189.86,3.24643795]
[1761319791404,37.14,189.88,189.84,19.04657816]
[1761319791709,37.82,189.88,189.86,3.24643795]
[1761319793106,37.14,189.88,189.86,3.24643795]
[1761319793533,37.14,189.88,189.87,5.26676146]
[1761319794247,36.53,189.88,189.87,9.12319941]
[1761319794430,0.68,189.97,189.9,22.88]
[1761319794746,0.68,189.97,189.95,3.24643795]
[1761319794908,37.14,189.96,189.9,22.88]
[1761319795108,37.14,189.96,189.92,22.88]
[1761319795344,0.68,189.95,189.87,18.43366513]
[1761319795537,0.68,189.95,189.92,3.24643795]
[1761319796338,0.68,189.95,189.93,3.24643795]
[1761319797350,0.68,189.95,189.93,8.51137564]
[1761319798715,37.14,189.94,189.93,8.51137564]
[1761319799112,0.68,189.95,189.93,8.51137564]
[1761319799334,37.14,189.94,189.93,8.51137564]
[1761319800130,37.8,189.94,189.93,8.51137564]
[1761319800325,37.14,189.94,189.93,8.51137564]
[1761319800531,103.3,189.98,189.93,21.6741198]
[1761319800712,141.08,189.98,189.96,3.24643795]
[1761319800915,140.42,189.98,189.93,18.42768185]
[1761319801121,0.66,189.97,189.95,3.24643795]
[1761319801427,0.66,189.97,189.95,5.2645433]
[1761319801828,0.66,189.97,189.95,8.51098125]
[1761319802736,0.66,189.97,189.9,5.26592943]
[1761319802941,9.17048547,189.97,189.9,3.24643795]
[1761319803231,3.24643795,189.94,189.88,8.51292204]
[1761319803421,37.12,189.93,189.88,8.51292204]
[1761319803624,0.66,189.92,189.88,8.51292204]
[1761319804131,0.66,189.92,189.88,5.26648409]
[1761319804329,0.66,189.92,189.88,8.51292204]
[1761319804631,0.66,189.92,189.89,3.24643795]
[1761319804845,129.42643795,189.99,189.86,18.43460998]
[1761319804846,0.66,189.94,189.91,3.24643795]
[1761319805033,37.12,189.93,189.91,3.24643795]
[1761319805441,37.78,189.93,189.91,3.24643795]
[1761319806629,37.78,189.93,189.92,5.26537489]
[1761319807743,0.66,189.93,189.92,8.51181284]
[1761319807949,37.12,189.93,189.92,8.51181284]
[1761319808251,3.24643795,189.97,189.92,8.51181284]
[1761319808252,37.12,189.94,189.92,21.67525007]
[1761319808457,37.12,189.95,189.92,21.67525007]
[1761319808886,0.66,189.94,189.92,21.67525007]
[1761319809045,0.66,189.94,189.93,3.24643795]
[1761319809639,37.12,189.95,189.93,3.24643795]
[1761319809853,37.78,189.95,189.94,5.26482046]
[1761319810761,37.12,189.95,189.94,8.51125841]
[1761319810965,37.78,189.95,189.94,8.51125841]
[1761319811262,37.78,189.95,189.94,5.26482046]
[1761319811563,0.66,189.95,189.94,8.51125841]
[1761319811763,37.78,189.95,189.94,8.51125841]
[1761319812966,37.78,189.95,189.94,5.26482046]
[1761319813549,37.78,189.95,189.93,5.26509398]
[1761319814164,0.66,189.94,189.93,5.26509398]
[1761319814353,0.66,189.94,189.93,8.51153193]
[1761319814765,37.12,189.95,189.93,8.51153193]
[1761319814944,37.78,189.95,189.93,8.51153193]
[1761319815952,0.66,189.94,189.93,8.51153193]
[1761319816154,37.12,189.95,189.93,8.51153193]
[1761319816155,37.12,189.95,189.93,5.26509398]
[1761319816644,37.78,189.95,189.93,5.26509398]
[1761319817058,37.78,189.95,189.93,8.51153193]
[1761319817254,37.12,189.95,189.94,3.24643795]
[1761319817858,37.1,189.95,189.94,3.24643795]
[1761319818043,37.1,189.95,189.91,13.16413037]
[1761319818250,37.76,189.95,189.93,3.24643795]
[1761319818769,37.76,189.95,189.93,2.07597734]
[1761319820375,37.76,189.95,189.94,5.26482046]
[1761319821272,37.76,189.95,189.89,36.04551026]
[1761319821471,0.69,189.94,189.89,5.26612948]
[1761319821676,0.69,189.94,189.89,7.34210682]
[1761319822069,2.07597734,189.93,189.89,5.26612948]
[1761319822389,0.69,189.92,189.89,5.26612948]
[1761319822684,37.1,189.91,189.88,2.07597734]
[1761319823154,0.69,189.9,189.88,2.07597734]
[1761319823551,0.69,189.9,189.87,20.50900037]
[1761319824456,0.69,189.9,189.87,5.26676146]
[1761319829067,0.69,189.9,189.86,30.22274166]
[1761319829264,0.69,189.9,189.81,4.42435437]
[1761319829463,10.87647521,189.89,189.82,2.07597734]
[1761319829777,37.1,189.88,189.82,2.07597734]
[1761319829957,2.07597734,189.87,189.82,2.07597734]
[1761319830155,2.07597734,189.86,189.81,20.51546946]
[1761319830479,2.76597734,189.86,189.81,20.51546946]
[1761319830665,0.69,189.85,189.81,18.43949212]
[1761319830871,37.1,189.84,189.82,2.07597734]
[1761319831056,37.1,189.84,189.81,18.43949212]
[1761319831373,37.79,189.84,189.81,20.51546946]
[1761319831979,0.69,189.83,189.81,20.51546946]
[1761319832274,37.1,189.84,189.81,20.51546946]
[1761319832460,0.69,189.86,189.83,2.07597734]
[1761319832656,0.69,189.9,189.85,2.07597734]
[1761319832853,37.1,189.89,189.87,2.07597734]
[1761319833374,0.69,189.88,189.85,2.07597734]
[1761319833772,0.69,189.88,189.84,18.43657816]
[1761319833972,0.69,189.88,189.85,2.07597734]
[1761319834871,37.79,189.88,189.86,7.34301621]
[1761319835967,37.1,189.88,189.86,7.34301621]
[1761319836159,37.76,189.88,189.86,2.07597734]
[1761319837396,37.76,189.88,189.87,5.26676146]
[1761319838675,37.76,189.88,189.86,2.07597734]
[1761319839260,37.1,189.88,189.87,2.07597734]
[1761319840783,37.1,189.88,189.87,7.3427388]
[1761319841290,37.76,189.88,189.87,7.3427388]
[1761319842773,0.66,189.88,189.87,7.3427388]
[1761319842971,37.74,189.88,189.87,7.3427388]
[1761319843172,37.74,189.88,189.84,15.24496174]
[1761319843376,0.66,189.87,189.84,15.24496174]
[1761319844167,0.66,189.87,189.84,20.5125555]
[1761319844764,0.66,189.87,189.85,2.07597734]
[1761319844967,37.08,189.86,189.85,2.07597734]
[1761319845165,37.74,189.86,189.85,2.07597734]
[1761319846081,0.66,189.86,189.85,2.07597734]
[1761319846286,37.74,189.86,189.85,2.07597734]
[1761319846678,37.74,189.86,189.85,7.34329364]
[1761319846874,37.74,189.86,189.85,5.2673163]
[1761319847200,37.74,189.86,189.85,7.34329364]
[1761319849188,37.08,189.86,189.85,7.34329364]
[1761319851182,37.08,189.86,189.85,2.07597734]
[1761319851183,37.79,189.86,189.85,2.07597734]
[1761319851382,37.08,189.86,189.85,2.07597734]
[1761319852175,37.08,189.87,189.85,2.07597734]
[1761319852489,37.08,189.87,189.86,2.07597734]
[1761319852893,37.08,189.87,189.86,7.34301621]
[1761319855000,0.71,189.89,189.86,20.51061338]
[1761319855180,37.08,189.88,189.86,5.26703887]
[1761319855600,0.71,189.87,189.86,5.26703887]
[1761319856690,0.71,189.87,189.85,5.2673163]
[1761319857887,37.08,189.86,189.85,5.2673163]
[1761319858282,37.74,189.86,189.85,5.2673163]
[1761319858989,37.74,189.86,189.83,18.43686253]
[1761319859184,0.66,189.85,189.83,18.43686253]
[1761319859886,0.66,189.85,189.83,20.51283987]
[1761319863713,0.66,189.85,189.83,5.26787125]
[1761319866108,2.07597734,189.84,189.82,5.26811392]
[1761319866308,0.66,189.83,189.82,5.26811392]
[1761319866696,103.3,189.88,189.82,5.26811392]
[1761319866898,37.72,189.87,189.82,20.51446319]
[1761319867113,39.79597734,189.87,189.82,18.43848585]
[1761319867306,0.66,189.86,189.82,18.43848585]
[1761319867700,37.06,189.85,189.82,20.51446319]
[1761319868210,0.66,189.84,189.82,20.51446319]
[1761319868913,37.72,189.84,189.82,20.51446319]
[1761319869720,0.66,189.83,189.82,20.51446319]
[1761319870213,0.66,189.83,189.79,9.69328039]
[1761319870416,37.06,189.82,189.79,7.34490336]
[1761319870805,0.66,189.81,189.79,7.34490336]
[1761319871312,37.06,189.8,189.79,7.34490336]
[1761319871826,0.66,189.81,189.79,7.34490336]
[1761319872010,37.06,189.8,189.79,5.26892602]
[1761319872324,37.06,189.8,189.79,7.34490336]
[1761319873822,37.06,189.8,189.79,23.16894007]
[1761319875021,37.72,189.8,189.78,5.26924566]
[1761319875240,0.66,189.79,189.78,5.26924566]
[1761319875720,0.66,189.79,189.77,0.1]
[1761319875721,0.66,189.79,189.77,5.36947326]
[1761319876220,0.66,189.79,189.77,0.1]
[1761319876417,0.66,189.79,189.77,5.36946994]
[1761319877432,0.66,189.79,189.77,0.1]
[1761319877604,0.66,189.79,189.77,5.36930015]
[1761319878806,37.06,189.78,189.77,5.36930015]
[1761319879413,37.76,189.78,189.77,5.36930015]
[1761319880906,37.06,189.78,189.77,5.36930015]
[1761319881115,3.24971614,189.81,189.77,5.36930015]
[1761319881402,0.7,189.78,189.77,8.61901629]
[1761319881611,0.7,189.79,189.77,21.7928583]
[1761319881819,103.3,189.83,189.78,3.24971614]
[1761319882000,37.06,189.82,189.8,3.24971614]
[1761319882213,37.76,189.82,189.8,3.24971614]
[1761319882616,0.7,189.85,189.81,3.24971614]
[1761319882832,37.06,189.84,189.83,3.24971614]
[1761319883031,37.76,189.84,189.81,15.8215331]
[1761319883217,37.76,189.84,189.83,8.51758739]
[1761319883418,37.76,189.84,189.83,5.26787125]
[1761319883608,0.7,189.87,189.83,21.68726552]
[1761319883818,37.06,189.86,189.85,3.24971614]
[1761319884263,37.76,189.86,189.85,3.24971614]
[1761319884540,37.76,189.86,189.85,19.07124924]
[1761319884953,37.06,189.86,189.85,15.8215331]
[1761319885127,37.06,189.86,189.85,24.33856554]
[1761319885329,37.76,189.86,189.85,37.50685629]
[1761319885633,37.06,189.86,189.85,37.50685629]
[1761319885835,37.76,189.86,189.85,24.33856554]
[1761319886150,41.00971614,189.86,189.81,3.24971614]
[1761319886328,0.7,189.85,189.81,3.24971614]
[1761319886528,0.7,189.85,189.83,15.82320208]
[1761319887233,0.7,189.85,189.81,8.51794992]
[1761319887544,3.24971614,189.84,189.81,21.0931052]
[1761319887755,0.7,189.85,189.81,5.26823378]
[1761319887927,0.7,189.84,189.81,21.0931052]
[1761319888837,0.7,189.84,189.82,3.24971614]
[1761319889039,0.7,189.84,189.81,37.51388714]
[1761319889238,0.7,189.84,189.83,5.26787125]
[1761319889831,40.30971614,189.86,189.83,5.26787125]
[1761319890150,0.7,189.85,189.83,5.26787125]
[1761319891035,37.06,189.84,189.83,5.26787125]
[1761319891749,0.7,189.85,189.83,5.26787125]
[1761319892045,37.06,189.84,189.83,5.26787125]
[1761319892226,37.06,189.84,189.83,21.68726552]
[1761319892433,0.7,189.87,189.83,21.68726552]
[1761319892635,37.06,189.86,189.85,3.24971614]
[1761319892839,37.06,189.86,189.85,8.51703244]
[1761319893351,104.0,189.88,189.85,21.68532319]
[1761319893554,37.06,189.86,189.85,21.68532319]
[1761319894031,37.72,189.86,189.85,21.68532319]
[1761319894239,37.72,189.86,189.85,37.50602193]
[1761319896836,37.72,189.86,189.85,34.25630579]
[1761319897032,0.66,189.86,189.85,34.25630579]
[1761319897346,37.7,189.86,189.85,37.50602193]
[1761319897539,37.7,189.86,189.85,34.25630579]
[1761319898962,37.04,189.86,189.85,37.50602193]
[1761319899349,37.7,189.86,189.85,37.50602193]
[1761319900357,0.66,189.86,189.85,37.50602193]
[1761319900658,37.7,189.86,189.85,37.50602193]
[1761319901170,37.7,189.86,189.85,21.08801504]